{"text_format":"3","workbook":"xlsx","n_sheets":2,"sheets":["Povzetek proračuna","Podrobnosti o proračunu"],"not_rendered":{"images":1,"defined_names":1},"read":"whole","date_system":"1900"}

{"sheet":"Povzetek proračuna","index":0,"n_rows":28,"n_cols":7,"rows_kept":28}
[{"$nulls":6}," "]
[]
[null,"SKUPNI PRORAČUN POROKE",{"v":20000,"d":"20,000 €"}]
[]
[null,"STROŠKI","Dodelitev \n%","Dodeljen proračun","Ocenjeni \nStroški","Dejansko stanje \nStroški"]
[null,"Poročno slavje",{"v":0.5,"d":"50%"},{"$f":"Skupen_Proračun_Poroke*'Povzetek proračuna'!$C6","v":{"v":10000,"d":"10,000 €"}},{"$f":"Tabela_Slavje[[#Totals],[Predvideni stroški]]","v":{"v":0,"d":"0 €"}},{"$f":"Tabela_Slavje[[#Totals],[Dejanski stroški]]","v":{"v":0,"d":"0 €"}}]
[null,"Obleka",{"v":0.1,"d":"10%"},{"$f":"Skupen_Proračun_Poroke*'Povzetek proračuna'!$C7","v":{"v":2000,"d":"2,000 €"}},{"$f":"Tabela_Oblačila[[#Totals],[Predvideni stroški]]","v":{"v":0,"d":"0 €"}},{"$f":"Tabela_Oblačila[[#Totals],[Dejanski stroški]]","v":{"v":0,"d":"0 €"}}]
[null,"Cvetje in okraski",{"v":0.1,"d":"10%"},{"$f":"Skupen_Proračun_Poroke*'Povzetek proračuna'!$C8","v":{"v":2000,"d":"2,000 €"}},{"$f":"Tabela_RožeInDekoracije[[#Totals],[Predvideni stroški]]","v":{"v":0,"d":"0 €"}},{"$f":"Tabela_RožeInDekoracije[[#Totals],[Dejanski stroški]]","v":{"v":0,"d":"0 €"}}]
[null,"Glasba",{"v":0.1,"d":"10%"},{"$f":"Skupen_Proračun_Poroke*'Povzetek proračuna'!$C9","v":{"v":2000,"d":"2,000 €"}},{"$f":"Tabela_Glasba[[#Totals],[Predvideni stroški]]","v":{"v":0,"d":"0 €"}},{"$f":"Tabela_Glasba[[#Totals],[Dejanski stroški]]","v":{"v":0,"d":"0 €"}}]
[null,"Fotografije in videoposnetki",{"v":0.1,"d":"10%"},{"$f":"Skupen_Proračun_Poroke*'Povzetek proračuna'!$C10","v":{"v":2000,"d":"2,000 €"}},{"$f":"Tabela_FotografijeInVideoposnetki[[#Totals],[Predvideni stroški]]","v":{"v":0,"d":"0 €"}},{"$f":"Tabela_FotografijeInVideoposnetki[[#Totals],[Dejanski stroški]]","v":{"v":0,"d":"0 €"}}]
[null,"Prednosti in darila",{"v":0.03,"d":"3%"},{"$f":"Skupen_Proračun_Poroke*'Povzetek proračuna'!$C11","v":{"v":600,"d":"600 €"}},{"$f":"Tabela_UslugeInDarila[[#Totals],[Predvideni stroški]]","v":{"v":0,"d":"0 €"}},{"$f":"Tabela_UslugeInDarila[[#Totals],[Dejanski stroški]]","v":{"v":0,"d":"0 €"}}]
[null,"Poroka",{"v":0.02,"d":"2%"},{"$f":"Skupen_Proračun_Poroke*'Povzetek proračuna'!$C12","v":{"v":400,"d":"400 €"}},{"$f":"Tabela_Slovesnost[[#Totals],[Predvideni stroški]]","v":{"v":0,"d":"0 €"}},{"$f":"Tabela_Slovesnost[[#Totals],[Dejanski stroški]]","v":{"v":0,"d":"0 €"}}]
[null,"Tiskovina",{"v":0.02,"d":"2%"},{"$f":"Skupen_Proračun_Poroke*'Povzetek proračuna'!$C13","v":{"v":400,"d":"400 €"}},{"$f":"Tabela_Tiskovine[[#Totals],[Predvideni stroški]]","v":{"v":0,"d":"0 €"}},{"$f":"Tabela_Tiskovine[[#Totals],[Dejanski stroški]]","v":{"v":0,"d":"0 €"}}]
[null,"Poročna prstana",{"v":0.02,"d":"2%"},{"$f":"Skupen_Proračun_Poroke*'Povzetek proračuna'!$C14","v":{"v":400,"d":"400 €"}},{"$f":"Tabela_PoročnaPrstana[[#Totals],[Predvideni stroški]]","v":{"v":0,"d":"0 €"}},{"$f":"Tabela_PoročnaPrstana[[#Totals],[Dejanski stroški]]","v":{"v":0,"d":"0 €"}}]
[null,"Prevoz",{"v":0.01,"d":"1%"},{"$f":"Skupen_Proračun_Poroke*'Povzetek proračuna'!$C15","v":{"v":200,"d":"200 €"}},{"$f":"Tabela_Prevoz[[#Totals],[Predvideni stroški]]","v":{"v":0,"d":"0 €"}},{"$f":"Tabela_Prevoz[[#Totals],[Dejanski stroški]]","v":{"v":0,"d":"0 €"}}]
[null,"Vsota",{"$f":"SUM(C6:C15)","v":{"v":1,"d":"100%"}},{"$f":"SUM(D6:D15)","v":{"v":20000,"d":"20,000 €"}},{"v":0,"d":"0 €"},{"v":0,"d":"0 €"}]
[]
[null,"PRISPEVKI"]
[null,"Vir sklada","Prispevek"]
[null,"Prihranki",{"v":10000,"d":"10,000 €"}]
[null,"Mama in oče partnerja 1",{"v":4000,"d":"4,000 €"}]
[null,"Stari starši partnerja 1",{"v":2000,"d":"2,000 €"}]
[null,"Mama in oče partnerja 2",{"v":4000,"d":"4,000 €"}]
[null,"Stari starši partnerja 2",{"v":4000,"d":"4,000 €"}]
[null,"Drugi prispevki",{"v":2000,"d":"2,000 €"}]
[null,"Skupaj",{"$f":"SUBTOTAL(109,Tabela_Prispevkov[Prispevek])","v":{"v":26000,"d":"26,000 €"}}]
[]
[null,{"$f":"IF(Tabela_Prispevkov[[#Totals],[Prispevek]]<Skupen_Proračun_Poroke,\"Razlika do vsote\",\"Razpoložljiva dodatna sredstva\")","v":"Razpoložljiva dodatna sredstva"},{"$f":"IF(Tabela_Prispevkov[[#Totals],[Prispevek]]<Skupen_Proračun_Poroke,Skupen_Proračun_Poroke-Tabela_Prispevkov[[#Totals],[Prispevek]],Tabela_Prispevkov[[#Totals],[Prispevek]]-Skupen_Proračun_Poroke)","v":{"v":6000,"d":"6,000 €"}}]

{"sheet":"Podrobnosti o proračunu","index":1,"n_rows":80,"n_cols":4,"rows_kept":80}
[]
[null,"POROČNO SLAVJE","Predvideni stroški","Dejanski stroški"]
[null,"Prizorišče in najemnine"]
[null,"Prehrana in storitev"]
[null,"Pijače"]
[null,"Torta"]
[null,"Razni stroški"]
[null,"Vsota",{"$f":"SUBTOTAL(109,Tabela_Slavje[Predvideni stroški])","v":{"v":0,"d":"0.00 €"}},{"$f":"SUBTOTAL(109,Tabela_Slavje[Dejanski stroški])","v":{"v":0,"d":"0.00 €"}}]
[]
[null,"OBLEKA","Predvideni stroški","Dejanski stroški"]
[null,"Smoking, obleka in/ali obleke"]
[null,"Spremembe"]
[null,"Pokrivalo in tančica"]
[null,"Dodatki"]
[null,"Lasje in ličila"]
[null,"Razni stroški"]
[null,"Vsota",{"$f":"SUBTOTAL(109,Tabela_Oblačila[Predvideni stroški])","v":{"v":0,"d":"0.00 €"}},{"$f":"SUBTOTAL(109,Tabela_Oblačila[Dejanski stroški])","v":{"v":0,"d":"0.00 €"}}]
[]
[null,"CVETJE IN OKRASKI","Predvideni stroški","Dejanski stroški"]
[null,"Cvetlična ureditev za slovesnost"]
[null,"Popki in košara za deklico s cvetjem"]
[null,"Blazina z obročem"]
[null,"Šopki"]
[null,"Naprsni šopki"]
[null,"Zapestni šopki"]
[null,"Okrasne dekoracije"]
[null,"Osvetlitev"]
[null,"Razni stroški"]
[null,"Vsota",{"$f":"SUBTOTAL(109,Tabela_RožeInDekoracije[Predvideni stroški])","v":{"v":0,"d":"0.00 €"}},{"$f":"SUBTOTAL(109,Tabela_RožeInDekoracije[Dejanski stroški])","v":{"v":0,"d":"0.00 €"}}]
[]
[null,"GLASBA","Predvideni stroški","Dejanski stroški"]
[null,"Glasbeniki slovesnosti"]
[null,"Glasbeniki v koktajl urah"]
[null,"Skupina za sprejem, DJ ali zabava"]
[null,"Izposoja zvočne opreme ali plesne talne obloge"]
[null,"Razni stroški"]
[null,"Vsota",{"$f":"SUBTOTAL(109,Tabela_Glasba[Predvideni stroški])","v":{"v":0,"d":"0.00 €"}},{"$f":"SUBTOTAL(109,Tabela_Glasba[Dejanski stroški])","v":{"v":0,"d":"0.00 €"}}]
[]
[null,"FOTOGRAFIJE IN VIDEOPOSNETKI","Predvideni stroški","Dejanski stroški"]
[null,"Fotografije"]
[null,"Videoposnetki"]
[null,"Dodatni tiski in albumi"]
[null,"Razni stroški"]
[null,"Vsota",{"$f":"SUBTOTAL(109,Tabela_FotografijeInVideoposnetki[Predvideni stroški])","v":{"v":0,"d":"0.00 €"}},{"$f":"SUBTOTAL(109,Tabela_FotografijeInVideoposnetki[Dejanski stroški])","v":{"v":0,"d":"0.00 €"}}]
[]
[null,"USLUGE IN DARILA","Predvideni stroški","Dejanski stroški"]
[null,"Pozdravna darila"]
[null,"Zabavna darila"]
[null,"Razni stroški"]
[null,"Vsota",{"$f":"SUBTOTAL(109,Tabela_UslugeInDarila[Predvideni stroški])","v":{"v":0,"d":"0.00 €"}},{"$f":"SUBTOTAL(109,Tabela_UslugeInDarila[Dejanski stroški])","v":{"v":0,"d":"0.00 €"}}]
[]
[null,"POROKA","Predvideni stroški","Dejanski stroški"]
[null,"Pristojbina prizorišča"]
[null,"Uradna pristojbina ali darovanje za cerkev"]
[null,"Razni stroški"]
[null,"Vsota",{"$f":"SUBTOTAL(109,Tabela_Slovesnost[Predvideni stroški])","v":{"v":0,"d":"0.00 €"}},{"$f":"SUBTOTAL(109,Tabela_Slovesnost[Dejanski stroški])","v":{"v":0,"d":"0.00 €"}}]
[]
[null,"TISKOVINA","Predvideni stroški","Dejanski stroški"]
[null,"Kartice »shrani-datum«"]
[null,"Povabila in odgovori nanje"]
[null,"Programi"]
[null,"Sedežni razpored in kartice za sedenje"]
[null,"Menijske kartice"]
[null,"Zahvalne kartice"]
[null,"Poštnina"]
[null,"Razni stroški"]
[null,"Vsota",{"$f":"SUBTOTAL(109,Tabela_Tiskovine[Predvideni stroški])","v":{"v":0,"d":"0.00 €"}},{"$f":"SUBTOTAL(109,Tabela_Tiskovine[Dejanski stroški])","v":{"v":0,"d":"0.00 €"}}]
[]
[null,"POROČNA PRSTANA","Predvideni stroški","Dejanski stroški"]
[null,"Poročna prstana"]
[null,"Dodatki za prstan"]
[null,"Vsota",{"$f":"SUBTOTAL(109,Tabela_PoročnaPrstana[Predvideni stroški])","v":{"v":0,"d":"0.00 €"}},{"$f":"SUBTOTAL(109,Tabela_PoročnaPrstana[Dejanski stroški])","v":{"v":0,"d":"0.00 €"}}]
[]
[null,"PREVOZ","Predvideni stroški","Dejanski stroški"]
[null,"Najem glavnega avtomobila"]
[null,"Najem avtomobila za goste"]
[null,"Prevoz za goste, ki so zunaj mesta"]
[null,"Valetno parkiranje"]
[null,"Razni stroški"]
[null,"Vsota",{"$f":"SUBTOTAL(109,Tabela_Prevoz[Predvideni stroški])","v":{"v":0,"d":"0.00 €"}},{"$f":"SUBTOTAL(109,Tabela_Prevoz[Dejanski stroški])","v":{"v":0,"d":"0.00 €"}}]